fUSD/lending_fUSD_20250407
["ID","MTS","AMOUNT","RATE_DAILY","PERIOD"]
[357309452,1744004232348,-500.0,0.00050684,120]
[357309453,1744004232409,-500.0,0.00050684,120]
[357309454,1744004232475,-319.18,0.00050684,120]
[357309455,1744004232548,-269.01879513,0.00050684,120]
[357309456,1744004232616,-891.76,0.00050684,120]
[357309457,1744004232682,-543.86,0.00050684,120]
[357309458,1744004232748,-500.0,0.00050684,120]
[357309459,1744004232811,-500.0,0.00050684,120]
[357309460,1744004232876,-1131.81,0.00050684,120]
[357309461,1744004232943,-642.12,0.00050684,120]
[357309462,1744004233018,-223.48769187,0.00050684,120]
[357309463,1744004233090,-801.0,0.00050684,120]
[357309464,1744004233164,-500.0,0.00050684,120]
[357309465,1744004233233,-603.59,0.00050684,120]
[357309466,1744004233300,-500.0,0.00050684,120]
[357309467,1744004233366,-500.0,0.00050684,120]
[357309468,1744004233434,-1604.32,0.00050684,120]
[357309469,1744004233504,-500.0,0.00050684,120]
[357309470,1744004233566,-500.0,0.00050684,120]
[357309471,1744004233627,-565.78,0.00050684,120]
[357309472,1744004233689,-500.0,0.00050684,120]
[357309473,1744004233752,-500.0,0.00050684,120]
[357309474,1744004233814,-695.39,0.00050684,120]
[357309475,1744004233877,-500.0,0.00050684,120]
[357309476,1744004233939,-516.92,0.00050684,120]
[357309477,1744004234001,-293.34714899,0.00050684,120]
[357309478,1744004234223,-500.0,0.00050684,120]
[357309479,1744004234301,-2327.34,0.00050684,120]
[357309480,1744004234368,-500.0,0.00050684,120]
[357309481,1744004234435,-500.0,0.00050684,120]
[357309482,1744004234502,-500.0,0.00050684,120]
[357309483,1744004234565,-3568.12,0.00050684,120]
[357309484,1744004234626,-500.0,0.00050684,120]
[357309485,1744004234687,-500.0,0.00050684,120]
[357309486,1744004234749,-500.0,0.00050684,120]
[357309487,1744004234815,-500.0,0.00050684,120]
[357309488,1744004234885,-500.0,0.00050684,120]
[357309489,1744004234961,-500.0,0.00050684,120]
[357309490,1744004235024,-500.0,0.00050684,120]
[357309491,1744004235088,-500.0,0.00050684,120]
[357309492,1744004235155,-246.20760006,0.00050684,120]
[357309493,1744004235223,-382.20334276,0.00050684,120]
[357309494,1744004235288,-500.0,0.00050684,120]
[357309495,1744004235355,-536.42,0.00050684,120]
[357309496,1744004235425,-500.0,0.00050684,120]
[357309497,1744004235494,-500.0,0.00050684,120]
[357309498,1744004235567,-500.0,0.00050684,120]
[357309499,1744004235636,-500.0,0.00050684,120]
[357309500,1744004235706,-500.0,0.00050684,120]
[357309501,1744004235774,-500.0,0.00050684,120]
[357309502,1744004235837,-545.45221533,0.00050684,30]
[357309503,1744004235899,-530.64416084,0.00050684,120]
[357309504,1744004235959,-500.0,0.00050684,120]
[357309505,1744004236020,-500.0,0.00050684,120]
[357309506,1744004236081,-500.0,0.00050684,120]
[357309507,1744004236142,-355.09587699,0.00050684,120]
[357309508,1744004236206,-500.0,0.00050684,120]
[357309509,1744004236267,-500.0,0.00050684,120]
[357309510,1744004236332,-500.0,0.00050684,120]
[357309511,1744004236405,-500.0,0.00050684,120]
[357309512,1744004236474,-500.0,0.00050684,120]
[357309513,1744004236545,-500.0,0.00050684,120]
[357309514,1744004236610,-1483.35,0.00050684,120]
[357309515,1744004236677,-500.0,0.00050684,120]
[357309516,1744004236739,-500.0,0.00050684,120]
[357309517,1744004236802,-902.71,0.00050684,120]
[357309518,1744004236862,-500.0,0.00050684,120]
[357309519,1744004236950,-516.35784648,0.00050684,120]
[357309520,1744004237044,-500.0,0.00050684,120]
[357309521,1744004237141,-500.0,0.00050684,120]
[357309522,1744004237239,-521.52,0.00050684,120]
[357309523,1744004237326,-4838.43,0.00050684,120]
[357309524,1744004237409,-500.0,0.00050684,120]
[357309525,1744004237491,-556.0783249,0.00050684,120]
[357309526,1744004237572,-520.65210827,0.00050684,120]
[357309527,1744004237658,-500.0,0.00050684,120]
[357309528,1744004237741,-575.056221,0.00050684,120]
[357309529,1744004237825,-500.0,0.00050684,120]
[357309530,1744004237906,-500.0,0.00050684,120]
[357309531,1744004237987,-500.0,0.00050684,120]
[357309532,1744004238078,-500.0,0.00050684,120]
[357309533,1744004238165,-500.0,0.00050684,120]
[357309534,1744004238254,-1085.1,0.00050684,120]
[357309535,1744004238338,-386.81590666,0.00050684,120]
[357309536,1744004238406,-500.0,0.00050684,120]
[357309537,1744004238472,-500.0,0.00050684,120]
[357309538,1744004238542,-757.6,0.00050684,120]
[357309539,1744004238610,-1000.0,0.00050684,120]
[357309540,1744004238682,-500.0,0.00050684,120]
[357309541,1744004238748,-540.6245944,0.00050684,120]
[357309542,1744004238815,-500.0,0.00050684,120]
[357309543,1744004238882,-243.13510218,0.00050684,120]
[357309544,1744004238949,-500.0,0.00050684,120]
[357309545,1744004239018,-500.0,0.00050684,120]
[357309546,1744004239085,-500.0,0.00050684,120]
[357309547,1744004239154,-500.0,0.00050684,120]
[357309548,1744004239219,-528.41,0.00050684,120]
[357309549,1744004239279,-23119.87,0.00050684,120]
[357309550,1744004239342,-566.60589552,0.00050684,120]
[357309551,1744004239406,-500.0,0.00050684,120]
[357309552,1744004239470,-500.0,0.00050684,120]
[357309553,1744004239530,-500.0,0.00050684,120]
[357309554,1744004239592,-500.0,0.00050684,120]
[357309555,1744004239657,-226.40155305,0.00050684,120]
[357309556,1744004239720,-576.76,0.00050684,120]
[357309557,1744004240324,-500.0,0.00050684,120]
[357309558,1744004240408,-500.0,0.00050684,120]
[357309559,1744004240467,-500.0,0.00050684,120]
[357309560,1744004240527,-195.83744595,0.00050684,120]
[357309561,1744004240597,-500.0,0.00050684,120]
[357309562,1744004240663,-500.0,0.00050684,120]
[357309563,1744004240729,-500.0,0.00050684,120]
[357309564,1744004240792,-500.0,0.00050684,120]
[357309565,1744004240853,-633.07353193,0.00050684,120]
[357309566,1744004240911,-318.84336426,0.00050684,120]
[357309567,1744004240972,-598.2,0.00050684,120]
[357309568,1744004241034,-920.78,0.00050684,120]
[357309569,1744004241098,-500.0,0.00050684,120]
[357309570,1744004241166,-1760.18,0.00050684,120]
[357309571,1744004241237,-275.42477761,0.00050684,120]
[357309572,1744004241312,-500.0,0.00050684,120]
[357309573,1744004241389,-500.0,0.00050684,120]
[357309574,1744004241469,-500.0,0.00050684,120]
[357309575,1744004241538,-152.12,0.00050685,120]
[357309576,1744004241607,-210.0,0.0005071,30]
[357309577,1744004241673,-1908.74172873,0.000508,90]
[357309578,1744004241739,-254.37,0.00050844,120]
[357309579,1744004241802,-1607.14,0.00050958,120]
[357309580,1744004241862,-487.09199811,0.00050958,120]
[357309581,1744004241921,-158.86667731,0.00050958,120]
[357309582,1744004241986,-313.402132,0.00050958,120]
[357309583,1744004242054,-3193.986782,0.00050958,120]
[357309584,1744004242121,-660.523371,0.00050958,120]
[357309585,1744004242188,-500.0,0.00050958,120]
[357309586,1744004242257,-500.0,0.00050958,120]
[357309587,1744004242319,-529.56,0.00050958,120]
[357309588,1744004242383,-629.86795554,0.00050958,120]
[357309589,1744004242449,-500.0,0.00050958,120]
[357309590,1744004242511,-210.69549057,0.00050958,120]
[357309591,1744004242573,-500.0,0.00050958,120]
[357309592,1744004242633,-500.0,0.00050958,120]
[357309593,1744004242692,-500.0,0.00050958,120]
[357309594,1744004242752,-500.0,0.00050958,120]
[357309595,1744004242809,-1873.68,0.00050958,120]
[357309596,1744004242870,-500.0,0.00050958,120]
[357309597,1744004242936,-500.0,0.00050958,120]
[357309598,1744004243003,-500.0,0.00050958,120]
[357309599,1744004243072,-500.0,0.00050958,120]
[357309600,1744004243139,-480.33893707,0.00050958,120]
[357309601,1744004243207,-500.0,0.00050958,120]
[357309602,1744004243273,-500.0,0.00050958,120]
[357309603,1744004243339,-500.0,0.00050958,120]
[357309604,1744004243403,-500.0,0.00050958,120]
[357309605,1744004243465,-500.0,0.00050958,120]
[357309606,1744004243528,-500.0,0.00050958,120]
[357309607,1744004243597,-500.0,0.00050958,120]
[357309608,1744004243664,-500.0,0.00050958,120]
[357309609,1744004243730,-500.0,0.00050958,120]
[357309610,1744004243794,-637.61681094,0.00050958,120]
[357309611,1744004243857,-500.0,0.00050958,120]
[357309612,1744004243918,-500.0,0.00050958,120]
[357309613,1744004243981,-500.0,0.00050958,120]
[357309614,1744004244046,-507.02405778,0.00050958,120]
[357309615,1744004244112,-1225.53,0.00050958,120]
[357309616,1744004244175,-500.0,0.00050958,120]
[357309617,1744004244239,-455.07802657,0.00050958,120]
[357309618,1744004244301,-500.0,0.00050958,120]
[357309619,1744004244364,-500.0,0.00050958,120]
[357309620,1744004244426,-500.0,0.00050958,120]
[357309621,1744004244484,-500.0,0.00050958,120]
[357309622,1744004244543,-629.21785017,0.00050958,120]
[357309623,1744004244600,-500.0,0.00050958,120]
[357309624,1744004244664,-500.0,0.00050958,120]
[357309625,1744004244722,-500.0,0.00050958,120]
[357309626,1744004244779,-500.0,0.00050958,120]
[357309627,1744004244836,-500.0,0.00050958,120]
[357309628,1744004244900,-500.0,0.00050958,120]
[357309629,1744004244961,-500.0,0.00050958,120]
[357309630,1744004245023,-500.0,0.00050958,120]
[357309631,1744004245088,-500.0,0.00050958,120]
[357309632,1744004245155,-760.28,0.00050958,120]
[357309633,1744004245228,-500.0,0.00050958,120]
[357309634,1744004245291,-500.0,0.00050958,120]
[357309635,1744004245354,-500.0,0.00050958,120]
[357309636,1744004245418,-500.0,0.00050958,120]
[357309637,1744004245479,-500.0,0.00050958,120]
[357309638,1744004245537,-500.0,0.00050958,120]
[357309639,1744004245594,-500.0,0.00050958,120]
[357309640,1744004245892,-835.94,0.00050958,120]
[357309641,1744004245953,-500.0,0.00050958,120]
[357309642,1744004246011,-500.0,0.00050958,120]
[357309643,1744004246070,-500.0,0.00050958,120]
[357309644,1744004246132,-500.0,0.00050958,120]
[357309645,1744004246192,-500.0,0.00050958,120]
[357309646,1744004246252,-596.65,0.00050958,120]
[357309647,1744004246315,-800.51,0.00050958,120]
[357309648,1744004246382,-646.46,0.00050958,120]
[357309649,1744004246446,-500.0,0.00050958,120]
[357309650,1744004246510,-797.82,0.00050958,120]
[357309651,1744004246571,-698.98,0.00050958,120]
[357309652,1744004246631,-669.44,0.00050958,120]
[357309653,1744004246693,-2707.98,0.00050958,120]
[357309654,1744004246754,-500.0,0.00050958,120]
[357309655,1744004246812,-500.0,0.00050958,120]
[357309656,1744004246870,-500.0,0.00050958,120]
[357309657,1744004246926,-500.0,0.00050958,120]
[357309658,1744004246983,-500.0,0.00050958,120]
[357309659,1744004247043,-500.0,0.00050958,120]
[357309660,1744004247103,-500.0,0.00050958,120]
[357309661,1744004247162,-524.26,0.00050958,120]
[357309662,1744004247224,-2353.85,0.00050958,120]
[357309663,1744004247285,-517.20173005,0.00050958,120]
[357309664,1744004247347,-987.22,0.00050958,120]
[357309665,1744004247409,-500.0,0.00050958,120]
[357309666,1744004247472,-500.0,0.00050958,120]
[357309667,1744004247533,-500.0,0.00050958,120]
[357309668,1744004247594,-544.42956111,0.00050958,120]
[357309669,1744004247654,-533.19693777,0.00050958,120]
[357309670,1744004247720,-500.0,0.00050958,120]
[357309671,1744004247780,-500.0,0.00050958,120]
[357309672,1744004247842,-500.0,0.00050958,120]
[357309673,1744004247902,-500.0,0.00050958,120]
[357309674,1744004247962,-500.0,0.00050958,120]
[357309675,1744004248020,-500.0,0.00050958,120]
[357309676,1744004248081,-500.0,0.00050958,120]
[357309677,1744004248141,-500.0,0.00050958,120]
[357309678,1744004248203,-551.53,0.00050958,120]
[357309679,1744004248263,-678.92,0.00050958,120]
[357309680,1744004248324,-500.0,0.00050958,120]
[357309681,1744004248383,-761.56,0.00050958,120]
[357309682,1744004248441,-526.71,0.00050958,30]
[357309683,1744004248498,-500.0,0.00050958,120]
[357309684,1744004248553,-515.69,0.00050958,120]
[357309685,1744004248608,-500.0,0.00050958,120]
[357309686,1744004248668,-500.0,0.00050958,120]
[357309687,1744004248725,-500.0,0.00050958,120]
[357309688,1744004248782,-607.42,0.00050958,120]
[357309689,1744004248840,-1141.72,0.00050958,120]
[357309690,1744004248894,-500.0,0.00050958,120]
[357309691,1744004248950,-500.0,0.00050958,120]
[357309692,1744004249007,-836.39,0.00050958,120]
[357309693,1744004249066,-500.0,0.00050958,120]
[357309694,1744004249127,-500.0,0.00050958,120]
[357309695,1744004249190,-500.0,0.00050958,120]
[357309696,1744004249249,-500.0,0.00050958,120]
[357309697,1744004249310,-500.0,0.00050958,120]
[357309698,1744004249372,-625.41717148,0.00050958,120]
[357309699,1744004249434,-1188.09,0.00050958,120]
[357309700,1744004249491,-500.0,0.00050958,120]
[357309701,1744004249547,-500.0,0.00050958,120]
[357309702,1744004249608,-500.0,0.00050958,120]
[357309703,1744004249668,-500.0,0.00050958,120]
[357309704,1744004249731,-869.5,0.00050958,120]
[357309705,1744004249789,-500.0,0.00050958,120]
[357309706,1744004249846,-629.74208519,0.00050958,120]
[357309707,1744004249904,-500.0,0.00050958,120]
[357309708,1744004249962,-500.0,0.00050958,120]
[357309709,1744004250017,-500.0,0.00050958,120]
[357309710,1744004250074,-610.71463616,0.00050958,120]
[357309711,1744004250133,-257.62624952,0.00050958,120]
[357309712,1744004250192,-500.0,0.00050958,120]
[357309713,1744004250250,-319.18,0.00050958,120]
[357309714,1744004250310,-891.76,0.00050958,120]
[357309715,1744004250374,-543.86,0.00050958,120]
[357309716,1744004250439,-363.12060477,0.00050958,120]
[357309717,1744004250498,-617.06350353,0.00050958,120]
[357309718,1744004250557,-1131.81,0.00050958,120]
[357309719,1744004250615,-642.12,0.00050958,120]
[357309720,1744004250676,-801.0,0.00050958,120]
[357309721,1744004250737,-500.0,0.00050958,120]
[357309722,1744004250797,-603.59,0.00050958,120]
[357309723,1744004250858,-500.0,0.00050958,120]
[357309724,1744004250925,-500.0,0.00050958,120]
[357309725,1744004250987,-1604.32,0.00050958,120]
[357309726,1744004251055,-623.64950794,0.00050958,120]
[357309727,1744004251126,-500.0,0.00050958,120]
[357309728,1744004251195,-565.78,0.00050958,120]
[357309729,1744004251256,-500.0,0.00050958,120]
[357309730,1744004251317,-500.0,0.00050958,120]
[357309731,1744004251377,-695.39,0.00050958,120]
[357309732,1744004251445,-500.0,0.00050958,120]
[357309733,1744004251509,-516.92,0.00050958,120]
[357309734,1744004251578,-500.0,0.00050958,120]
[357309735,1744004251813,-2327.34,0.00050958,120]
[357309736,1744004251894,-500.0,0.00050958,120]
[357309737,1744004251961,-500.0,0.00050958,120]
[357309738,1744004252024,-500.0,0.00050958,120]
[357309739,1744004252106,-3568.12,0.00050958,120]
[357309740,1744004252175,-500.0,0.00050958,120]
[357309741,1744004252238,-500.0,0.00050958,120]
[357309742,1744004252300,-500.0,0.00050958,120]
[357309743,1744004252363,-500.0,0.00050958,120]
[357309744,1744004252432,-500.0,0.00050958,120]
[357309745,1744004252504,-500.0,0.00050958,120]
[357309746,1744004252574,-197.85967957,0.00050958,120]
[357309747,1744004252642,-500.0,0.00050958,120]
[357309748,1744004252710,-500.0,0.00050958,120]
[357309749,1744004252770,-536.42,0.00050958,120]
[357309750,1744004252833,-500.0,0.00050958,120]
[357309751,1744004252892,-500.0,0.00050958,120]
[357309752,1744004252950,-500.0,0.00050958,120]
[357309753,1744004253011,-500.0,0.00050958,120]
[357309754,1744004253077,-500.0,0.00050958,120]
[357309755,1744004253146,-500.0,0.00050958,120]
[357309756,1744004253215,-500.0,0.00050958,120]
[357309757,1744004253290,-500.0,0.00050958,120]
[357309758,1744004253367,-500.0,0.00050958,120]
[357309759,1744004253439,-500.0,0.00050958,120]
[357309760,1744004253510,-500.0,0.00050958,120]
[357309761,1744004253575,-500.0,0.00050958,120]
[357309762,1744004253644,-277.12540715,0.00050958,120]
[357309763,1744004253710,-500.0,0.00050958,120]
[357309764,1744004253773,-500.0,0.00050958,120]
[357309765,1744004253835,-1483.35,0.00050958,120]
[357309766,1744004253904,-500.0,0.00050958,120]
[357309767,1744004253999,-500.0,0.00050958,120]
[357309768,1744004254086,-902.71,0.00050958,120]
[357309769,1744004254158,-500.0,0.00050958,120]
[357309770,1744004254235,-500.0,0.00050958,120]
[357309771,1744004254308,-500.0,0.00050958,120]
[357309772,1744004254378,-4838.43,0.00050958,120]
[357309773,1744004254444,-521.52,0.00050958,120]
[357309774,1744004254509,-500.0,0.00050958,120]
[357309775,1744004254572,-500.0,0.00050958,120]
[357309776,1744004254635,-500.0,0.00050958,120]
[357309777,1744004254699,-500.0,0.00050958,120]
[357309778,1744004254758,-500.0,0.00050958,120]
[357309779,1744004254816,-500.0,0.00050958,120]
[357309780,1744004254878,-500.0,0.00050958,120]
[357309781,1744004254946,-1085.1,0.00050958,120]
[357309782,1744004255011,-500.0,0.00050958,120]
[357309783,1744004255077,-500.0,0.00050958,120]
[357309784,1744004255139,-757.6,0.00050958,120]
[357309785,1744004255201,-1000.0,0.00050958,120]
[357309786,1744004255266,-500.0,0.00050958,120]
[357309787,1744004255333,-500.0,0.00050958,120]
[357309788,1744004255402,-500.0,0.00050958,120]
[357309789,1744004255474,-500.0,0.00050958,120]
[357309790,1744004255547,-581.50067311,0.00050958,120]
[357309791,1744004255618,-500.0,0.00050958,120]
[357309792,1744004255688,-528.41,0.00050958,120]
[357309793,1744004255762,-23119.87,0.00050958,120]
[357309794,1744004255833,-500.0,0.00050958,120]
[357309795,1744004255897,-500.0,0.00050958,120]
[357309796,1744004255958,-218.70481885,0.00050958,120]
[357309797,1744004256016,-500.0,0.00050958,120]
[357309798,1744004256083,-576.76,0.00050958,120]
[357309799,1744004256147,-500.0,0.00050958,120]
[357309800,1744004256215,-500.0,0.00050958,120]
[357309801,1744004256283,-500.0,0.00050958,120]
[357309802,1744004256359,-500.0,0.00050958,120]
[357309803,1744004256440,-500.0,0.00050958,120]
[357309804,1744004256517,-500.0,0.00050958,120]
[357309805,1744004256596,-500.0,0.00050958,120]
[357309806,1744004256670,-598.2,0.00050958,120]
[357309807,1744004256751,-920.78,0.00050958,120]
[357309808,1744004256827,-500.0,0.00050958,120]
[357309809,1744004256901,-1760.18,0.00050958,120]
[357309810,1744004256971,-500.0,0.00050958,120]
[357309811,1744004257039,-500.0,0.00050958,120]
[357309812,1744004257112,-500.0,0.00050958,120]
[357309813,1744004257187,-500.0,0.00051,120]
[357309814,1744004257259,-500.0,0.00051,120]
[357309815,1744004257331,-500.0,0.00051,120]
[357309816,1744004257401,-250.0,0.00051,52]
[357309817,1744004257470,-42911.75760006,0.00051,120]
[357309818,1744004257538,-300.0,0.00051,120]
[357309819,1744004257606,-250.0,0.000512,120]
[357309820,1744004257676,-250.0,0.000512,120]
[357309821,1744004257743,-250.0,0.000512,120]
[357309822,1744004257810,-250.0,0.000512,120]
[357309823,1744004257873,-250.0,0.000512,120]
[357309824,1744004257938,-250.0,0.000512,120]
[357309825,1744004258009,-250.0,0.000512,120]
[357309826,1744004258089,-271.6,0.000512,120]
[357309827,1744004258165,-1607.14,0.00051232,120]
[357309828,1744004258248,-500.0,0.00051232,120]
[357309829,1744004258321,-529.56,0.00051232,120]
[357309830,1744004258547,-306.38696101,0.00051232,120]
[357309831,1744004258617,-500.0,0.00051232,120]
[357309832,1744004258687,-500.0,0.00051232,120]
[357309833,1744004258750,-236.32043642,0.00051232,120]
[357309834,1744004258813,-500.0,0.00051232,120]
[357309835,1744004258875,-1873.68,0.00051232,120]
[357309836,1744004258937,-500.0,0.00051232,120]
[357309837,1744004258998,-241.73574184,0.00051232,120]
[357309838,1744004259066,-500.0,0.00051232,120]
[357309839,1744004259132,-500.0,0.00051232,120]
[357309840,1744004259199,-500.0,0.00051232,120]
[357309841,1744004259263,-500.0,0.00051232,120]
[357309842,1744004259328,-500.0,0.00051232,120]
[357309843,1744004259396,-500.0,0.00051232,120]
[357309844,1744004259466,-500.0,0.00051232,120]
[357309845,1744004259537,-500.0,0.00051232,120]
[357309846,1744004259605,-500.0,0.00051232,120]
[357309847,1744004259680,-500.0,0.00051232,120]
[357309848,1744004259776,-500.0,0.00051232,120]
[357309849,1744004259871,-500.0,0.00051232,120]
[357309850,1744004259945,-500.0,0.00051232,120]
[357309851,1744004260011,-500.0,0.00051232,120]
[357309852,1744004260077,-1225.53,0.00051232,120]
[357309853,1744004260141,-500.0,0.00051232,120]
[357309854,1744004260207,-500.0,0.00051232,120]
[357309855,1744004260274,-554.19333151,0.00051232,120]
[357309856,1744004260341,-500.0,0.00051232,120]
[357309857,1744004260405,-500.0,0.00051232,120]
[357309858,1744004260469,-500.0,0.00051232,120]
[357309859,1744004260539,-500.0,0.00051232,120]
[357309860,1744004260613,-500.0,0.00051232,120]
[357309861,1744004260690,-500.0,0.00051232,120]
[357309862,1744004260769,-500.0,0.00051232,120]
[357309863,1744004260839,-500.0,0.00051232,120]
[357309864,1744004260908,-500.0,0.00051232,120]
[357309865,1744004260978,-500.0,0.00051232,120]
[357309866,1744004261044,-500.0,0.00051232,120]
[357309867,1744004261114,-760.28,0.00051232,120]
[357309868,1744004261191,-500.0,0.00051232,120]
[357309869,1744004261265,-467.77408959,0.00051232,120]
[357309870,1744004261337,-500.0,0.00051232,120]
[357309871,1744004261404,-500.0,0.00051232,120]
[357309872,1744004261472,-500.0,0.00051232,120]
[357309873,1744004261545,-500.0,0.00051232,120]
[357309874,1744004261625,-500.0,0.00051232,120]
[357309875,1744004261700,-835.94,0.00051232,120]
[357309876,1744004261771,-439.28417291,0.00051232,120]
[357309877,1744004261839,-500.0,0.00051232,120]
[357309878,1744004261906,-500.0,0.00051232,120]
[357309879,1744004261976,-500.0,0.00051232,120]
[357309880,1744004262045,-500.0,0.00051232,120]
[357309881,1744004262110,-596.65,0.00051232,120]
[357309882,1744004262174,-800.51,0.00051232,120]
[357309883,1744004262241,-646.46,0.00051232,120]
[357309884,1744004262302,-500.0,0.00051232,120]
[357309885,1744004262365,-797.82,0.00051232,120]
[357309886,1744004262426,-698.98,0.00051232,120]
[357309887,1744004262491,-669.44,0.00051232,120]
[357309888,1744004262550,-2707.98,0.00051232,120]
[357309889,1744004262611,-500.0,0.00051232,120]
[357309890,1744004262676,-500.0,0.00051232,120]
[357309891,1744004262741,-500.0,0.00051232,120]
[357309892,1744004262799,-500.0,0.00051232,120]
[357309893,1744004262859,-500.0,0.00051232,120]
[357309894,1744004262917,-500.0,0.00051232,120]
[357309895,1744004262976,-490.22047189,0.00051232,120]
[357309896,1744004263033,-524.26,0.00051232,120]
[357309897,1744004263094,-2353.85,0.00051232,120]
[357309898,1744004263158,-987.22,0.00051232,120]
[357309899,1744004263218,-491.05914318,0.00051232,120]
[357309900,1744004263277,-500.0,0.00051232,120]
[357309901,1744004263337,-500.0,0.00051232,120]
[357309902,1744004263398,-583.9493204,0.00051232,120]
[357309903,1744004263462,-500.0,0.00051232,120]
[357309904,1744004263524,-500.0,0.00051232,120]
[357309905,1744004263586,-500.0,0.00051232,120]
[357309906,1744004263645,-500.0,0.00051232,120]
[357309907,1744004263707,-500.0,0.00051232,120]
[357309908,1744004263767,-500.0,0.00051232,120]
[357309909,1744004263830,-500.0,0.00051232,120]
[357309910,1744004263891,-551.53,0.00051232,120]
[357309911,1744004263952,-678.92,0.00051232,120]
[357309912,1744004264013,-500.0,0.00051232,120]
[357309913,1744004264075,-761.56,0.00051232,120]
[357309914,1744004264135,-526.71,0.00051232,30]
[357309915,1744004264194,-500.0,0.00051232,120]
[357309916,1744004264254,-515.69,0.00051232,120]
[357309917,1744004264323,-500.0,0.00051232,120]
[357309918,1744004264391,-500.0,0.00051232,120]
[357309919,1744004264461,-500.0,0.00051232,120]
[357309920,1744004264535,-607.42,0.00051232,120]
[357309921,1744004264605,-1141.72,0.00051232,120]
[357309922,1744004264670,-500.0,0.00051232,120]
[357309923,1744004264737,-500.0,0.00051232,120]
[357309924,1744004264800,-836.39,0.00051232,120]
[357309925,1744004265052,-500.0,0.00051232,120]
[357309926,1744004265126,-500.0,0.00051232,120]
[357309927,1744004265202,-500.0,0.00051232,120]
[357309928,1744004265279,-500.0,0.00051232,120]
[357309929,1744004265358,-500.0,0.00051232,120]
[357309930,1744004265440,-1188.09,0.00051232,120]
[357309931,1744004265511,-500.0,0.00051232,120]
[357309932,1744004265580,-500.0,0.00051232,120]
[357309933,1744004265647,-500.0,0.00051232,120]
[357309934,1744004265716,-500.0,0.00051232,120]
[357309935,1744004265789,-869.5,0.00051232,120]
[357309936,1744004265854,-500.0,0.00051232,120]
[357309937,1744004265917,-386.52483912,0.00051232,120]
[357309938,1744004265983,-500.0,0.00051232,120]
[357309939,1744004266052,-500.0,0.00051232,120]
[357309940,1744004266130,-500.0,0.00051232,120]
[357309941,1744004266208,-319.18,0.00051232,120]
[357309942,1744004266287,-891.76,0.00051232,120]
[357309943,1744004266361,-543.86,0.00051232,120]
[357309944,1744004266440,-1131.81,0.00051232,120]
[357309945,1744004266511,-642.12,0.00051232,120]
[357309946,1744004266580,-801.0,0.00051232,120]
[357309947,1744004266652,-500.0,0.00051232,120]
[357309948,1744004266931,-603.59,0.00051232,120]
[357309949,1744004267005,-500.0,0.00051232,120]
[357309950,1744004267070,-500.0,0.00051232,120]
[357309951,1744004267138,-1604.32,0.00051232,120]